bitfinex/quotes_BTCUSD_20220101
["timestamp","ask_amount","ask_price","bid_price","bid_amount"]
[1641026184069,0.05728115,47247.0,47246.0,1.24609062]
[1641026184669,0.05728115,47247.0,47246.0,1.96790916]
[1641026185214,0.05728115,47247.0,47246.0,1.24609062]
[1641026187418,0.05728115,47247.0,47246.0,1.96790916]
[1641026190773,0.05728115,47247.0,47246.0,1.57977592]
[1641026190972,0.05728115,47247.0,47246.0,0.85795738]
[1641026192574,0.05728115,47247.0,47246.0,0.34018923]
[1641026192841,0.05728115,47247.0,47242.0,0.21]
[1641026193639,0.30368451,47246.0,47242.0,0.21]
[1641026194340,0.052934,47245.0,47242.0,0.21]
[1641026197666,0.05,47245.0,47242.0,0.21]
[1641026197866,0.05294,47244.0,47242.0,0.21]
[1641026203030,0.26668241,47243.0,47242.0,0.21]
[1641026203230,0.37257441,47243.0,47242.0,0.21]
[1641026204378,0.38234413,47243.0,47242.0,0.21]
[1641026205184,0.38113072,47243.0,47242.0,0.21]
[1641026205984,0.39091606,47243.0,47242.0,0.21]
[1641026206285,0.38114634,47243.0,47242.0,0.21]
[1641026206485,0.40189706,47243.0,47242.0,0.21]
[1641026206685,0.39211172,47243.0,47242.0,0.21]
[1641026207483,0.4101143,47243.0,47242.0,0.21]
[1641026209213,0.43080114,47243.0,47242.0,0.21]
[1641026209414,0.41141373,47243.0,47242.0,0.21]
[1641026209616,0.39072689,47243.0,47242.0,0.21]
[1641026211116,0.41040389,47243.0,47242.0,0.21]
[1641026211477,0.40911481,47243.0,47242.0,0.21]
[1641026211677,0.38943781,47243.0,47242.0,0.21]
[1641026212475,0.40828582,47243.0,47242.0,0.21]
[1641026212675,0.39020901,47243.0,47242.0,0.21]
[1641026213476,0.40949228,47243.0,47242.0,0.21]
[1641026213678,0.39064427,47243.0,47242.0,0.21]
[1641026214576,0.41125985,47243.0,47242.0,0.21]
[1641026214777,0.39197658,47243.0,47242.0,0.21]
[1641026215629,0.40999142,47243.0,47242.0,0.21]
[1641026215929,0.38937584,47243.0,47242.0,0.21]
[1641026216528,0.40991061,47243.0,47242.0,0.21]
[1641026216728,0.39189577,47243.0,47242.0,0.21]
[1641026217531,0.41175476,47243.0,47242.0,0.21]
[1641026217727,0.39121999,47243.0,47242.0,0.21]
[1641026218528,0.41285382,47243.0,47242.0,0.21]
[1641026218729,0.39299483,47243.0,47242.0,0.21]
[1641026219583,0.41418864,47243.0,47242.0,0.21]
[1641026219878,0.39255481,47243.0,47242.0,0.21]
[1641026220482,0.41180033,47243.0,47242.0,0.21]
[1641026220684,0.39060652,47243.0,47242.0,0.21]
[1641026221483,0.41254991,47243.0,47242.0,0.21]
[1641026221682,0.39330439,47243.0,47242.0,0.21]
[1641026222583,0.41511665,47243.0,47242.0,0.21]
[1641026222826,0.39317326,47243.0,47242.0,0.21]
[1641026223626,0.4116695,47243.0,47242.0,0.21]
[1641026223826,0.38985724,47243.0,47242.0,0.21]
[1641026224527,0.40797915,47243.0,47242.0,0.21]
[1641026224728,0.38948291,47243.0,47242.0,0.21]
[1641026225535,0.40989776,47243.0,47242.0,0.21]
[1641026226483,0.371361,47243.0,47242.0,0.21]
[1641026226682,0.3906052,47243.0,47242.0,0.21]
[1641026226981,0.3406052,47243.0,47242.0,0.21]
[1641026227782,0.35988108,47243.0,47242.0,0.21]
[1641026227984,0.34063688,47243.0,47242.0,0.21]
[1641026228385,0.39063688,47243.0,47242.0,0.21]
[1641026228584,0.41214878,47243.0,47242.0,0.21]
[1641026228786,0.3928729,47243.0,47242.0,0.21]
[1641026230223,0.41224556,47243.0,47242.0,0.21]
[1641026230420,0.39073366,47243.0,47242.0,0.21]
[1641026230625,0.41027405,47243.0,47242.0,0.21]
[1641026230825,0.39090139,47243.0,47242.0,0.21]
[1641026231622,0.41288608,47243.0,47242.0,0.21]
[1641026231823,0.39334569,47243.0,47242.0,0.21]
[1641026232723,0.41142496,47243.0,47242.0,0.21]
[1641026233022,0.38944027,47243.0,47242.0,0.21]
[1641026233624,0.40947634,47243.0,47242.0,0.21]
[1641026234086,0.371361,47243.0,47242.0,0.21]
[1641026234690,0.38961039,47243.0,47242.0,0.21]
[1641026235687,0.40832589,47243.0,47242.0,0.21]
[1641026235887,0.3900765,47243.0,47242.0,0.21]
[1641026236787,0.41191879,47243.0,47242.0,0.21]
[1641026236987,0.39320329,47243.0,47242.0,0.21]
[1641026237290,0.39438856,47243.0,47242.0,0.21]
[1641026237716,0.41273685,47243.0,47242.0,0.21]
[1641026237918,0.39089456,47243.0,47242.0,0.21]
[1641026238822,0.39271462,47243.0,47242.0,0.21]
[1641026240424,0.41437198,47243.0,47242.0,0.21]
[1641026240623,0.39420363,47243.0,47242.0,0.21]
[1641026240822,0.4051418,47243.0,47242.0,0.21]
[1641026241024,0.38348444,47243.0,47242.0,0.21]
[1641026241877,0.39299222,47243.0,47242.0,0.21]
[1641026242077,0.38205405,47243.0,47242.0,0.21]
[1641026242878,0.40363428,47243.0,47242.0,0.21]
[1641026243077,0.3941265,47243.0,47242.0,0.21]
[1641026243880,0.41471988,47243.0,47242.0,0.21]
[1641026244080,0.39313965,47243.0,47242.0,0.21]
[1641026244877,0.41470797,47243.0,47242.0,0.21]
[1641026245079,0.70068306,47243.0,47242.0,0.21]
[1641026245328,0.80068306,47243.0,47242.0,0.21]
[1641026245530,0.65852136,47243.0,47242.0,0.21]
[1641026245928,0.67734228,47243.0,47242.0,0.21]
[1641026246129,0.77734228,47243.0,47242.0,0.21]
[1641026246732,0.51363053,47243.0,47242.0,0.21]
[1641026247131,0.49480961,47243.0,47242.0,0.21]
[1641026247930,0.50527164,47243.0,47242.0,0.21]
[1641026248131,0.48428637,47243.0,47242.0,0.21]
[1641026248984,0.48369076,47243.0,47242.0,0.21]
[1641026249779,0.49456769,47243.0,47242.0,0.21]
[1641026250179,0.48470127,47243.0,47242.0,0.21]
[1641026250380,0.59086696,47243.0,47242.0,0.21]
[1641026250580,0.59086696,47243.0,47236.0,0.00928445]
[1641026250581,0.052952,47242.0,47236.0,0.00928445]
[1641026250779,0.10616569,47237.0,47236.0,0.00928445]
[1641026251181,0.15616569,47237.0,47236.0,0.00928445]
[1641026252282,0.05295,47234.0,47231.0,0.005507]
[1641026252481,0.05,47237.0,47236.0,0.001151]
[1641026252728,0.15616569,47237.0,47236.0,0.001151]
[1641026254931,0.20911569,47237.0,47236.0,0.001151]
[1641026257878,0.10295,47237.0,47236.0,0.001151]
[1641026263034,0.10413542,47237.0,47236.0,0.001151]
[1641026265087,0.10293747,47237.0,47236.0,0.001151]
[1641026294179,0.05295,47234.0,47230.0,0.41256175]
[1641026294581,0.05295,47234.0,47231.0,0.0002191]
[1641026295383,0.00124465,47232.0,47231.0,0.0002191]
[1641026295583,0.12651665,47232.0,47231.0,0.0002191]
[1641026295781,0.12651665,47232.0,47230.0,0.13508637]
[1641026295782,0.61665169,47231.0,47230.0,0.13508637]
[1641026295981,0.43340247,47231.0,47230.0,0.13508637]
[1641026296183,0.91659789,47231.0,47230.0,0.12046068]
[1641026296581,1.07550089,47231.0,47230.0,0.12046068]
[1641026297483,1.29291232,47231.0,47230.0,0.12046068]
[1641026297735,1.02626063,47231.0,47230.0,0.12046068]
[1641026298139,0.7492309,47231.0,47230.0,0.12046068]
[1641026298337,0.36322507,47231.0,47230.0,0.12046068]
[1641026298537,0.34339758,47231.0,47230.0,0.12046068]
[1641026299140,0.18449458,47231.0,47230.0,0.12046068]
[1641026299341,0.03884739,47231.0,47230.0,0.12046068]
[1641026299540,0.01982181,47231.0,47230.0,0.12046068]
[1641026301142,0.052962,47232.0,47230.0,0.12046068]
[1641026301777,0.102947,47234.0,47231.0,0.87803111]
[1641026301980,0.00118542,47237.0,47232.0,0.338941]
[1641026302177,0.00118542,47237.0,47232.0,0.00129768]
[1641026302377,9.129e-05,47236.0,47232.0,0.00129768]
[1641026302577,0.00127723,47236.0,47233.0,0.338941]
[1641026302779,7.303e-05,47235.0,47233.0,0.338941]
[1641026303478,0.05301803,47235.0,47233.0,0.338941]
[1641026304084,7.303e-05,47235.0,47234.0,0.23639037]
[1641026304278,7.303e-05,47235.0,47234.0,0.57533137]
[1641026305351,0.00014439,47237.0,47236.0,0.338941]
[1641026305554,0.01003845,47257.0,47236.0,0.64365673]
[1641026305555,0.0001,47257.0,47236.0,0.64365673]
[1641026305749,0.0001,47257.0,47244.0,0.00128328]
[1641026306350,0.32697268,47255.0,47244.0,0.00128328]
[1641026306551,0.47697268,47255.0,47244.0,0.00128328]
[1641026306855,0.00031039,47252.0,47244.0,0.00128328]
[1641026307052,0.052931,47249.0,47244.0,0.00128328]
[1641026307452,0.00023736,47248.0,47244.0,0.00128328]
[1641026307852,0.0002191,47247.0,47244.0,0.00128328]
[1641026308053,0.0002191,47247.0,47242.0,0.2804442]
[1641026308254,0.00020084,47246.0,47238.0,0.26529388]
[1641026308456,0.00020084,47246.0,47238.0,0.00127607]
[1641026308655,0.00018258,47245.0,47238.0,0.00127607]
[1641026309086,0.00016432,47244.0,47238.0,0.00127607]
[1641026309492,0.00014607,47243.0,47238.0,0.00127607]
[1641026309686,0.05308407,47243.0,47239.0,0.338941]
[1641026309887,0.00012781,47242.0,47240.0,0.23255691]
[1641026310087,0.00012781,47242.0,47241.0,0.338941]
[1641026310287,0.00118528,47245.0,47238.0,0.00127607]
[1641026310288,0.00010955,47241.0,47238.0,0.00127607]
[1641026310490,0.00012781,47242.0,47238.0,0.00127607]
[1641026310789,0.00010955,47241.0,47239.0,0.338941]
[1641026311190,9.129e-05,47240.0,47238.0,0.00127607]
[1641026311488,7.304e-05,47239.0,47236.0,0.0047]
[1641026311687,7.304e-05,47239.0,47231.0,0.00129144]
[1641026311887,0.052947,47236.0,47231.0,0.00129144]
[1641026312191,0.25254111,47241.0,47231.0,0.00129144]
[1641026312192,9.129e-05,47240.0,47232.0,0.338941]
[1641026312388,9.129e-05,47240.0,47231.0,0.23194933]
[1641026312588,7.304e-05,47239.0,47231.0,0.23194933]
[1641026312835,0.052945,47237.0,47231.0,0.00129144]
[1641026314137,0.052945,47237.0,47231.0,0.21129144]
[1641026314741,0.00118548,47236.0,47231.0,0.21129144]
[1641026314942,0.05295,47234.0,47231.0,0.21129144]
[1641026320242,0.00118552,47233.0,47231.0,0.21129144]
[1641026324409,0.00118552,47233.0,47231.0,0.4402391]
[1641026324610,0.00118552,47233.0,47231.0,0.21]
[1641026324810,0.10709352,47233.0,47231.0,0.21]
[1641026325410,0.00118552,47233.0,47231.0,0.21]
[1641026325611,0.00118552,47233.0,47231.0,0.4389084]
[1641026326012,0.00118552,47233.0,47231.0,0.21]
[1641026326613,0.052949,47232.0,47231.0,0.21]
[1641026327014,0.052949,47232.0,47231.0,0.21007303]
[1641026332890,0.15911469,47232.0,47231.0,0.21007303]
[1641026333090,0.25911469,47232.0,47231.0,0.21007303]
[1641026334592,0.42458369,47232.0,47231.0,0.21007303]
[1641026334990,0.52458369,47232.0,47231.0,0.21007303]
[1641026335844,0.54331193,47232.0,47231.0,0.21007303]
[1641026336244,0.52458369,47232.0,47231.0,0.21007303]
[1641026336446,0.5432039,47232.0,47231.0,0.21007303]
[1641026337445,0.56315971,47232.0,47231.0,0.21007303]
[1641026337646,0.5445395,47232.0,47231.0,0.21007303]
[1641026337847,0.7445395,47232.0,47231.0,0.21007303]
[1641026338051,1.17,47231.0,47230.0,0.12046068]
[1641026338245,0.83350259,47231.0,47230.0,0.12046068]
[1641026338446,0.93350259,47231.0,47230.0,0.12046068]
[1641026339486,0.95363376,47231.0,47230.0,0.12046068]
[1641026340184,0.75363376,47231.0,47230.0,0.12046068]
[1641026340587,0.77167102,47231.0,47230.0,0.12046068]
[1641026340784,0.95153985,47231.0,47230.0,0.12046068]
[1641026341386,0.75153985,47231.0,47230.0,0.12046068]
[1641026341587,0.77072807,47231.0,47230.0,0.12046068]
[1641026341787,0.75269081,47231.0,47230.0,0.12046068]
[1641026342587,0.77073919,47231.0,47230.0,0.12046068]
[1641026342832,0.73350259,47231.0,47230.0,0.12046068]
[1641026343634,0.75388177,47231.0,47230.0,0.12046068]
[1641026344036,0.95388177,47231.0,47230.0,0.12046068]
[1641026344336,0.75388177,47231.0,47230.0,0.12046068]
[1641026344534,0.77540211,47231.0,47230.0,0.12046068]
[1641026344735,0.75502293,47231.0,47230.0,0.12046068]
[1641026345739,0.77582707,47231.0,47230.0,0.12046068]
[1641026345935,0.75430673,47231.0,47230.0,0.12046068]
[1641026346135,0.75575717,47231.0,47230.0,0.12046068]
[1641026346337,0.75449203,47231.0,47230.0,0.12046068]
[1641026347196,0.77389,47231.0,47230.0,0.12046068]
[1641026347397,0.75308586,47231.0,47230.0,0.12046068]
[1641026347596,0.75308586,47231.0,47230.0,0.11667641]
[1641026347597,0.46369379,47231.0,47230.0,0.11667641]
[1641026347795,0.44429582,47231.0,47230.0,0.11667641]
[1641026348599,0.7482854,47231.0,47230.0,0.11667641]
[1641026348898,0.4483854,47231.0,47230.0,0.11667641]
[1641026349701,0.46979356,47231.0,47230.0,0.11667641]
[1641026349898,0.44841464,47231.0,47230.0,0.11667641]
[1641026350642,0.4692811,47231.0,47230.0,0.11667641]
[1641026350837,0.44787294,47231.0,47230.0,0.11667641]
[1641026351638,0.46897791,47231.0,47230.0,0.11667641]
[1641026351838,0.44811145,47231.0,47230.0,0.11667641]
[1641026353341,0.47000329,47231.0,47230.0,0.11667641]
[1641026353542,0.44889832,47231.0,47230.0,0.11667641]
[1641026353742,0.46986333,47231.0,47230.0,0.11667641]
[1641026354001,0.44797149,47231.0,47230.0,0.11667641]
[1641026354794,0.44878255,47231.0,47230.0,0.11667641]
[1641026355796,0.46766832,47231.0,47230.0,0.11667641]
[1641026355996,0.44589225,47231.0,47230.0,0.11667641]
[1641026356208,0.45110195,47231.0,47230.0,0.11667641]
[1641026356799,0.47253156,47231.0,47230.0,0.11667641]
[1641026356996,0.45364579,47231.0,47230.0,0.11667641]
[1641026357839,0.4740423,47231.0,47230.0,0.11667641]
[1641026358240,0.4740423,47231.0,47228.0,0.00535204]
[1641026358241,0.682969,47229.0,47228.0,0.00535204]
[1641026358440,0.51162603,47229.0,47228.0,0.00535204]
[1641026358642,0.81683573,47229.0,47228.0,0.00535204]
[1641026359845,0.8384696,47229.0,47228.0,0.00535204]
[1641026360444,0.8384696,47229.0,47222.0,0.00011]
[1641026360645,0.052972,47226.0,47222.0,0.00011]
[1641026360844,0.052973,47224.0,47223.0,0.00014606]
[1641026362284,0.218442,47224.0,47223.0,0.00014606]
[1641026363087,0.32460769,47224.0,47223.0,0.00014606]
[1641026363488,0.42460769,47224.0,47223.0,0.00014606]
[1641026363888,0.44342897,47224.0,47223.0,0.00014606]
[1641026364492,0.17179428,47224.0,47223.0,0.00014606]
[1641026364691,0.07179428,47224.0,47223.0,0.00014606]
[1641026364892,0.07328075,47224.0,47223.0,0.00014606]
[1641026365435,0.17944644,47224.0,47223.0,0.00014606]
[1641026366037,0.15913869,47224.0,47223.0,0.00014606]
[1641026366837,0.052973,47224.0,47223.0,0.00014606]
[1641026367840,0.15913869,47224.0,47223.0,0.00014606]
[1641026371992,0.16058961,47224.0,47223.0,0.00014606]
[1641026372848,0.44541647,47224.0,47223.0,0.00014606]
[1641026373049,0.54541647,47224.0,47223.0,0.00014606]
[1641026373450,0.26058961,47224.0,47223.0,0.00014606]
[1641026373849,0.27986376,47224.0,47223.0,0.00014606]
[1641026374249,0.18104997,47224.0,47223.0,0.00014606]
[1641026374850,0.18104997,47224.0,47216.0,0.00934606]
[1641026375051,0.052977,47220.0,47216.0,0.00934606]
[1641026375251,0.211911,47220.0,47217.0,0.00010955]
[1641026375452,0.59636089,47219.0,47217.0,0.00010955]
[1641026375650,0.165469,47218.0,47217.0,0.00010955]
[1641026375852,0.215469,47218.0,47217.0,0.00010955]
[1641026376051,0.265469,47218.0,47217.0,0.00010955]
[1641026376253,0.97,47213.0,47211.0,0.011605]
[1641026376502,0.97,47213.0,47200.0,0.99763893]
[1641026376503,0.31410273,47207.0,47206.0,0.00055]
[1641026376693,0.31410273,47207.0,47203.0,1.17633]
[1641026376694,0.49564273,47207.0,47205.0,0.00011]
[1641026376897,0.54564273,47207.0,47201.0,0.59576749]
[1641026377095,0.32378167,47202.0,47201.0,0.59576749]
[1641026377299,0.32378167,47202.0,47200.0,0.28062195]
[1641026377494,0.47677367,47202.0,47200.0,0.28062195]
[1641026377897,0.59702587,47202.0,47200.0,0.27602195]
[1641026378797,0.2732442,47202.0,47200.0,0.27602195]
[1641026378998,0.29500167,47202.0,47200.0,0.27602195]
[1641026379195,0.17474947,47202.0,47200.0,0.27602195]
[1641026379395,0.17402934,47202.0,47200.0,0.27602195]
[1641026379596,0.17521611,47202.0,47200.0,0.27602195]
[1641026380237,0.15345864,47202.0,47200.0,0.27602195]
[1641026380637,0.15345864,47202.0,47200.0,0.26602195]
[1641026382740,0.34145266,47201.0,47200.0,0.26602195]
[1641026382940,0.00145266,47201.0,47200.0,0.26602195]
[1641026383140,0.00145266,47201.0,47200.0,0.26633233]
[1641026387941,0.00145266,47201.0,47200.0,0.25633233]
[1641026390747,0.29751535,47201.0,47200.0,0.25633233]
[1641026391347,0.55249867,47201.0,47200.0,0.25633233]
[1641026391595,0.81796767,47201.0,47200.0,0.25633233]
[1641026391996,0.83934532,47201.0,47200.0,0.25633233]
[1641026392194,0.94551101,47201.0,47200.0,0.25633233]
[1641026392898,0.69052769,47201.0,47200.0,0.25633233]
[1641026393097,0.70999146,47201.0,47200.0,0.25633233]
[1641026393295,0.68861381,47201.0,47200.0,0.25633233]
[1641026394096,0.70912382,47201.0,47200.0,0.25633233]
[1641026394298,0.68966005,47201.0,47200.0,0.25633233]
[1641026395243,0.69026571,47201.0,47200.0,0.25633233]
[1641026395446,0.39420302,47201.0,47200.0,0.25633233]
[1641026395645,0.29420302,47201.0,47200.0,0.25633233]
[1641026395842,0.39420302,47201.0,47200.0,0.25633233]
[1641026396044,0.41502288,47201.0,47200.0,0.25633233]
[1641026396445,0.39390721,47201.0,47200.0,0.25633233]
[1641026397144,0.41532213,47201.0,47200.0,0.25633233]
[1641026397344,0.39450227,47201.0,47200.0,0.25633233]
[1641026398145,0.41535969,47201.0,47200.0,0.25633233]
[1641026398348,0.39394477,47201.0,47200.0,0.25633233]
[1641026398545,0.29394477,47201.0,47200.0,0.25633233]
[1641026398999,0.49394477,47201.0,47200.0,0.25633233]
[1641026399186,0.51219637,47201.0,47200.0,0.25633233]
[1641026399386,0.59133895,47201.0,47200.0,0.25633233]
[1641026400187,0.31043768,47201.0,47200.0,0.25633233]
[1641026400387,0.29218608,47201.0,47200.0,0.25633233]
[1641026400992,0.29218608,47201.0,47200.0,0.48560862]
[1641026401189,0.12671708,47201.0,47200.0,0.48557664]
[1641026401390,0.10761835,47201.0,47200.0,0.48557664]
[1641026401593,0.20761835,47201.0,47200.0,0.48557664]
[1641026402852,0.20761835,47201.0,47200.0,0.48582151]
[1641026403853,0.20761835,47201.0,47200.0,0.25602195]
[1641026404254,0.20761835,47201.0,47200.0,0.48669285]
[1641026404858,0.20761835,47201.0,47200.0,0.48700323]
[1641026405055,0.20761835,47201.0,47200.0,0.25633233]
[1641026406356,0.20761835,47201.0,47200.0,0.46633233]
[1641026407589,0.20761835,47201.0,47200.0,0.69575824]
[1641026407787,0.20761835,47201.0,47200.0,0.46633233]
[1641026408390,0.20761835,47201.0,47200.0,0.70133475]
[1641026411450,0.20761835,47201.0,47200.0,0.46633233]
[1641026418649,0.20761835,47201.0,47200.0,0.69478352]
[1641026418849,0.20761835,47201.0,47200.0,0.46633233]
[1641026420751,0.20761835,47201.0,47200.0,0.69746039]
[1641026420951,0.20761835,47201.0,47200.0,0.46633233]
[1641026421352,0.20896213,47201.0,47200.0,0.46633233]
[1641026421587,0.20955532,47201.0,47200.0,0.69689576]
[1641026421789,0.20955532,47201.0,47200.0,0.46633233]
[1641026421994,0.20955532,47201.0,47200.0,0.69715536]
[1641026422188,0.20955532,47201.0,47200.0,0.69582294]
[1641026422388,0.20955532,47201.0,47200.0,0.46633233]
[1641026422787,0.20955532,47201.0,47200.0,0.69829464]
[1641026423190,0.20955532,47201.0,47200.0,0.46633233]
[1641026427353,0.20941421,47201.0,47200.0,0.46633233]
[1641026434757,0.20941421,47201.0,47200.0,0.46602195]
[1641026442148,0.00338963,47201.0,47200.0,0.7289883]
[1641026442351,0.31410273,47207.0,47201.0,0.49121077]
[1641026442352,0.105961,47206.0,47201.0,0.49121077]
[1641026442548,0.01996519,47203.0,47201.0,0.00121077]
[1641026442746,0.01996519,47203.0,47202.0,0.33921487]
[1641026442949,0.01996519,47203.0,47202.0,0.62396359]
[1641026443146,0.01996519,47203.0,47202.0,0.91439937]
[1641026443147,0.01746519,47203.0,47202.0,0.91439937]
[1641026443999,0.31410273,47207.0,47202.0,0.91439937]
[1641026444195,0.31410273,47207.0,47202.0,0.96737037]
[1641026444395,0.24866136,47210.0,47206.0,0.00123324]
[1641026444597,0.24866136,47210.0,47207.0,0.338941]
[1641026444798,0.24866136,47210.0,47208.0,0.28056378]
[1641026445000,0.24866136,47210.0,47209.0,0.338941]
[1641026445198,0.24866136,47210.0,47209.0,0.60300722]
[1641026446699,0.24866136,47210.0,47209.0,0.62249483]
[1641026447601,0.24984745,47210.0,47209.0,0.62136122]
[1641026448539,0.24984745,47210.0,47209.0,0.64326246]
[1641026448740,0.24984745,47210.0,47209.0,0.62490846]
[1641026449544,0.24984745,47210.0,47209.0,0.64564012]
[1641026449742,0.24984745,47210.0,47209.0,0.62373888]
[1641026450543,0.24984745,47210.0,47209.0,0.30457191]
[1641026450744,0.24984745,47210.0,47209.0,0.28384025]
[1641026450945,0.24984745,47210.0,47209.0,0.01992009]
[1641026452292,0.24984745,47210.0,47209.0,0.02114063]
[1641026452493,0.24984745,47210.0,47209.0,0.36008163]
[1641026452694,0.24984745,47210.0,47209.0,0.61847912]
[1641026453593,0.24984745,47210.0,47209.0,0.6404617]
[1641026454492,0.24984745,47210.0,47209.0,0.66240615]
[1641026454693,0.24984745,47210.0,47209.0,0.64042357]
[1641026456146,0.24984745,47210.0,47209.0,0.6624059]
[1641026456344,0.24984745,47210.0,47209.0,0.64046145]
[1641026456546,0.24984745,47210.0,47209.0,0.65917279]
[1641026456745,0.24984745,47210.0,47209.0,0.63719046]
[1641026457644,0.24984745,47210.0,47209.0,0.63755864]
[1641026458446,0.24984745,47210.0,47209.0,0.6564779]
[1641026458645,0.24984745,47210.0,47209.0,0.63739838]
[1641026459504,0.24984745,47210.0,47209.0,0.65811962]
[1641026459702,0.24984745,47210.0,47209.0,0.63920036]
[1641026459903,0.24993263,47210.0,47209.0,0.63920036]
[1641026461107,0.24993263,47210.0,47209.0,0.66039266]
[1641026461304,0.24993263,47210.0,47209.0,0.63967142]
[1641026461505,0.24993263,47210.0,47209.0,0.66153326]
[1641026461704,0.24993263,47210.0,47209.0,0.64034096]
[1641026462749,0.24993263,47210.0,47209.0,0.66201705]
[1641026462951,0.24993263,47210.0,47209.0,0.64015521]
[1641026464252,0.24993263,47210.0,47209.0,0.66121423]
[1641026464454,0.24993263,47210.0,47209.0,0.63953814]
[1641026464753,0.24993263,47210.0,47209.0,0.6400951]
[1641026465555,0.24993263,47210.0,47209.0,0.6618626]
[1641026465760,0.00921724,47218.0,47211.0,0.24748136]
[1641026465957,0.00921724,47218.0,47217.0,1.5149458]
[1641026466157,0.0999,47232.0,47217.0,1.5149458]
[1641026466158,0.052949,47232.0,47219.0,0.052949]
[1641026466357,0.0047,47241.0,47231.0,0.00122528]
[1641026466607,0.0047,47241.0,47220.0,0.28056378]
[1641026466608,0.00014607,47225.0,47220.0,0.28056378]
[1641026466806,0.00014607,47225.0,47224.0,0.43956093]
[1641026467010,0.31515626,47237.0,47224.0,0.77850193]
[1641026467306,0.1059,47236.0,47230.0,0.3301878]
[1641026467506,0.00920805,47235.0,47230.0,0.3301878]
[1641026467705,0.00953669,47235.0,47230.0,0.3301878]
[1641026467905,0.00031039,47234.0,47230.0,0.3301878]
[1641026468308,0.00029213,47233.0,47231.0,0.2562814]
[1641026468710,0.00027387,47232.0,47231.0,0.2562814]
[1641026469507,0.00027387,47232.0,47231.0,0.338941]
[1641026470756,0.00027387,47232.0,47231.0,0.35977998]
[1641026470960,0.00027387,47232.0,47231.0,0.02083898]
[1641026471954,0.05322187,47232.0,47230.0,0.0012867]
[1641026472356,0.00025561,47231.0,47230.0,0.0012867]
[1641026473857,0.00025561,47231.0,47227.0,0.0180313]
[1641026474096,0.052953,47229.0,47227.0,0.0180313]
[1641026474494,0.00020084,47228.0,47227.0,0.0180313]
[1641026474894,0.00020084,47228.0,47224.0,0.26066551]
[1641026475294,0.00018258,47227.0,47224.0,0.26066551]
[1641026475695,0.00016432,47226.0,47225.0,0.338941]
[1641026475994,0.00016432,47226.0,47225.0,0.59606412]
[1641026476205,0.00016432,47226.0,47225.0,0.25712312]
[1641026476894,0.00016432,47226.0,47225.0,0.61691301]
[1641026477295,0.05311832,47226.0,47225.0,0.82691301]
[1641026477751,0.00016432,47226.0,47225.0,0.84715879]
[1641026477955,0.00016432,47226.0,47225.0,0.8263099]
[1641026478857,0.00016432,47226.0,47225.0,0.82603239]
[1641026479656,0.00016432,47226.0,47225.0,0.84478517]
[1641026479858,0.00016432,47226.0,47225.0,0.8248169]
[1641026481365,0.00016432,47226.0,47225.0,0.84405901]
[1641026481599,0.00016432,47226.0,47225.0,0.82530623]
[1641026482398,0.00016432,47226.0,47225.0,0.84491153]
[1641026483198,0.00016432,47226.0,47225.0,0.80606412]
[1641026483398,0.00016432,47226.0,47225.0,0.82600212]
[1641026483797,0.00016432,47226.0,47225.0,0.84578476]
[1641026484000,0.00016432,47226.0,47225.0,0.82584676]
[1641026484899,0.00016432,47226.0,47225.0,0.84432746]
[1641026485101,0.00016432,47226.0,47225.0,0.82454482]
[1641026485755,0.00016432,47226.0,47225.0,0.84562375]
[1641026485955,0.00016432,47226.0,47225.0,0.82714305]
[1641026486756,0.00016432,47226.0,47225.0,0.84587553]
[1641026486956,0.00016432,47226.0,47225.0,0.8247966]
[1641026488455,0.00016432,47226.0,47225.0,0.8431203]
[1641026488655,0.00016432,47226.0,47225.0,0.82438782]
[1641026488856,0.00016432,47226.0,47225.0,0.84287132]
[1641026489097,0.00016432,47226.0,47225.0,0.82454762]
[1641026489794,0.00016432,47226.0,47225.0,0.84427954]
[1641026489996,0.00016432,47226.0,47225.0,0.82579604]
[1641026490897,0.00016432,47226.0,47225.0,0.84544037]
[1641026491094,0.00016432,47226.0,47225.0,0.82570845]
[1641026492497,0.00016432,47226.0,47225.0,0.84683189]
[1641026492743,0.00016432,47226.0,47225.0,0.82718756]
[1641026493347,0.00016432,47226.0,47225.0,0.23112344]
[1641026493548,0.00016432,47226.0,47225.0,0.22857457]
[1641026493949,0.00016432,47226.0,47225.0,0.23100264]
[1641026494550,0.10633001,47226.0,47225.0,0.23100264]
[1641026494950,0.20633001,47226.0,47225.0,0.23100264]
[1641026495148,0.20633001,47226.0,47225.0,0.21]
[1641026495350,0.10016432,47226.0,47225.0,0.21]
[1641026495550,0.05016432,47226.0,47225.0,0.21]
[1641026495851,0.00016432,47226.0,47225.0,0.21]
[1641026496515,0.00016432,47226.0,47225.0,0.16588548]
[1641026506104,0.05414015,47227.0,47225.0,0.16588548]
[1641026506304,0.05536422,47227.0,47225.0,0.16588548]
[1641026506503,0.165469,47226.0,47225.0,0.16588548]
[1641026506702,0.215469,47226.0,47225.0,0.16588548]
[1641026506903,0.265469,47226.0,47225.0,0.16588548]
[1641026507307,0.215469,47226.0,47225.0,0.16588548]
[1641026507602,0.265469,47226.0,47225.0,0.16588548]
[1641026509653,0.215469,47226.0,47225.0,0.16588548]
[1641026509857,0.165469,47226.0,47225.0,0.16588548]
[1641026511531,0.05414015,47227.0,47225.0,0.16588548]
[1641026515648,0.05414015,47227.0,47226.0,0.22763797]
[1641026516048,0.05432273,47227.0,47226.0,0.22763797]
[1641026516247,0.05236117,47227.0,47226.0,0.22763797]
[1641026517655,0.05236117,47227.0,47226.0,0.22638413]
[1641026517850,0.05236117,47227.0,47226.0,0.23136813]
[1641026518051,0.05236117,47227.0,47226.0,0.22611494]
[1641026521810,0.05236117,47227.0,47225.0,0.18428755]
[1641026522012,0.05236117,47227.0,47225.0,0.20388152]
[1641026522211,0.05217859,47227.0,47226.0,0.22687677]
[1641026522611,0.05236117,47227.0,47226.0,0.22687677]
[1641026523261,0.05236117,47227.0,47226.0,0.22789612]
[1641026523663,0.05236117,47227.0,47225.0,0.18416545]
[1641026523865,0.05236117,47227.0,47226.0,0.22658362]
[1641026524065,0.05217859,47227.0,47225.0,0.20407147]
[1641026524263,0.05217859,47227.0,47226.0,0.22576352]
[1641026524463,0.05217859,47227.0,47225.0,0.1857915]
[1641026524664,0.05217859,47227.0,47226.0,0.22590757]
[1641026524963,0.05217859,47227.0,47225.0,0.20652081]
[1641026525162,0.05217859,47227.0,47225.0,0.18661479]
[1641026525367,0.00016432,47226.0,47225.0,0.18661479]
[1641026525566,0.00016432,47226.0,47225.0,0.42365263]
[1641026526268,0.00016432,47226.0,47225.0,0.4003841]
[1641026526698,0.00016432,47226.0,47225.0,0.16588548]